{"text_format":"1","workbook":"xlsx","n_sheets":1,"sheets":["Лист1"],"not_rendered":{"charts":0,"images":0,"macros":0,"external_links":0,"defined_names":5,"comments":0,"pivot_tables":0},"unopened":[],"bounds":{"document_bytes":16777216,"sheet_cells":100000,"rows_first":2000,"rows_last":500,"rows_between":2000,"halvings":0,"cell_chars":16384,"cell_head_chars":4096},"cells_cut":0,"cells_raw":0,"read":"whole","date_system":"1900"}

{"sheet":"Лист1","index":0,"n_rows":38,"n_cols":5,"rows_kept":38,"cut":false,"hidden":false,"merged":[]}
["Список1",null,null,"Список2"]
[]
["Лист",null,1,{"$f":"IF(НомерСкольз=1,INDEX(Список1,1),IFERROR(INDEX(Список1,_xlfn.AGGREGATE(15,6,Номер/(COUNTIF(Список2Скольз,Список1)=0),1)),\"\"))","v":"Лист"},{"$f":"COUNTA(Список2)-COUNTBLANK(Список2)","v":4}]
["Лист",null,2,{"$f":"IF(НомерСкольз=1,INDEX(Список1,1),IFERROR(INDEX(Список1,_xlfn.AGGREGATE(15,6,Номер/(COUNTIF(Список2Скольз,Список1)=0),1)),\"\"))","v":"Пвл"}]
["Пвл",null,3,{"$f":"IF(НомерСкольз=1,INDEX(Список1,1),IFERROR(INDEX(Список1,_xlfn.AGGREGATE(15,6,Номер/(COUNTIF(Список2Скольз,Список1)=0),1)),\"\"))","v":"Сетка"}]
["Лист",null,4,{"$f":"IF(НомерСкольз=1,INDEX(Список1,1),IFERROR(INDEX(Список1,_xlfn.AGGREGATE(15,6,Номер/(COUNTIF(Список2Скольз,Список1)=0),1)),\"\"))","v":"Труба"}]
["Сетка",null,5,{"$f":"IF(НомерСкольз=1,INDEX(Список1,1),IFERROR(INDEX(Список1,_xlfn.AGGREGATE(15,6,Номер/(COUNTIF(Список2Скольз,Список1)=0),1)),\"\"))","v":""}]
["Сетка",null,6,{"$f":"IF(НомерСкольз=1,INDEX(Список1,1),IFERROR(INDEX(Список1,_xlfn.AGGREGATE(15,6,Номер/(COUNTIF(Список2Скольз,Список1)=0),1)),\"\"))","v":""}]
["Пвл",null,7,{"$f":"IF(НомерСкольз=1,INDEX(Список1,1),IFERROR(INDEX(Список1,_xlfn.AGGREGATE(15,6,Номер/(COUNTIF(Список2Скольз,Список1)=0),1)),\"\"))","v":""}]
["Пвл",null,8,{"$f":"IF(НомерСкольз=1,INDEX(Список1,1),IFERROR(INDEX(Список1,_xlfn.AGGREGATE(15,6,Номер/(COUNTIF(Список2Скольз,Список1)=0),1)),\"\"))","v":""}]
["Пвл",null,9,{"$f":"IF(НомерСкольз=1,INDEX(Список1,1),IFERROR(INDEX(Список1,_xlfn.AGGREGATE(15,6,Номер/(COUNTIF(Список2Скольз,Список1)=0),1)),\"\"))","v":""}]
["Труба",null,10,{"$f":"IF(НомерСкольз=1,INDEX(Список1,1),IFERROR(INDEX(Список1,_xlfn.AGGREGATE(15,6,Номер/(COUNTIF(Список2Скольз,Список1)=0),1)),\"\"))","v":""}]
["Лист",null,11,{"$f":"IF(НомерСкольз=1,INDEX(Список1,1),IFERROR(INDEX(Список1,_xlfn.AGGREGATE(15,6,Номер/(COUNTIF(Список2Скольз,Список1)=0),1)),\"\"))","v":""}]
["Сетка",null,12,{"$f":"IF(НомерСкольз=1,INDEX(Список1,1),IFERROR(INDEX(Список1,_xlfn.AGGREGATE(15,6,Номер/(COUNTIF(Список2Скольз,Список1)=0),1)),\"\"))","v":""}]
["Пвл",null,13,{"$f":"IF(НомерСкольз=1,INDEX(Список1,1),IFERROR(INDEX(Список1,_xlfn.AGGREGATE(15,6,Номер/(COUNTIF(Список2Скольз,Список1)=0),1)),\"\"))","v":""}]
["Труба",null,14,{"$f":"IF(НомерСкольз=1,INDEX(Список1,1),IFERROR(INDEX(Список1,_xlfn.AGGREGATE(15,6,Номер/(COUNTIF(Список2Скольз,Список1)=0),1)),\"\"))","v":""}]
["Лист",null,15,{"$f":"IF(НомерСкольз=1,INDEX(Список1,1),IFERROR(INDEX(Список1,_xlfn.AGGREGATE(15,6,Номер/(COUNTIF(Список2Скольз,Список1)=0),1)),\"\"))","v":""}]
["Труба",null,16,{"$f":"IF(НомерСкольз=1,INDEX(Список1,1),IFERROR(INDEX(Список1,_xlfn.AGGREGATE(15,6,Номер/(COUNTIF(Список2Скольз,Список1)=0),1)),\"\"))","v":""}]
["Сетка",null,17,{"$f":"IF(НомерСкольз=1,INDEX(Список1,1),IFERROR(INDEX(Список1,_xlfn.AGGREGATE(15,6,Номер/(COUNTIF(Список2Скольз,Список1)=0),1)),\"\"))","v":""}]
["Лист",null,18,{"$f":"IF(НомерСкольз=1,INDEX(Список1,1),IFERROR(INDEX(Список1,_xlfn.AGGREGATE(15,6,Номер/(COUNTIF(Список2Скольз,Список1)=0),1)),\"\"))","v":""}]
["Лист",null,19,{"$f":"IF(НомерСкольз=1,INDEX(Список1,1),IFERROR(INDEX(Список1,_xlfn.AGGREGATE(15,6,Номер/(COUNTIF(Список2Скольз,Список1)=0),1)),\"\"))","v":""}]
["Лист",null,20,{"$f":"IF(НомерСкольз=1,INDEX(Список1,1),IFERROR(INDEX(Список1,_xlfn.AGGREGATE(15,6,Номер/(COUNTIF(Список2Скольз,Список1)=0),1)),\"\"))","v":""}]
["Сетка",null,21,{"$f":"IF(НомерСкольз=1,INDEX(Список1,1),IFERROR(INDEX(Список1,_xlfn.AGGREGATE(15,6,Номер/(COUNTIF(Список2Скольз,Список1)=0),1)),\"\"))","v":""}]
["Сетка",null,22,{"$f":"IF(НомерСкольз=1,INDEX(Список1,1),IFERROR(INDEX(Список1,_xlfn.AGGREGATE(15,6,Номер/(COUNTIF(Список2Скольз,Список1)=0),1)),\"\"))","v":""}]
["Пвл",null,23,{"$f":"IF(НомерСкольз=1,INDEX(Список1,1),IFERROR(INDEX(Список1,_xlfn.AGGREGATE(15,6,Номер/(COUNTIF(Список2Скольз,Список1)=0),1)),\"\"))","v":""}]
["Труба",null,24,{"$f":"IF(НомерСкольз=1,INDEX(Список1,1),IFERROR(INDEX(Список1,_xlfn.AGGREGATE(15,6,Номер/(COUNTIF(Список2Скольз,Список1)=0),1)),\"\"))","v":""}]
["Пвл",null,25,{"$f":"IF(НомерСкольз=1,INDEX(Список1,1),IFERROR(INDEX(Список1,_xlfn.AGGREGATE(15,6,Номер/(COUNTIF(Список2Скольз,Список1)=0),1)),\"\"))","v":""}]
["Труба",null,26,{"$f":"IF(НомерСкольз=1,INDEX(Список1,1),IFERROR(INDEX(Список1,_xlfn.AGGREGATE(15,6,Номер/(COUNTIF(Список2Скольз,Список1)=0),1)),\"\"))","v":""}]
["Сетка",null,27,{"$f":"IF(НомерСкольз=1,INDEX(Список1,1),IFERROR(INDEX(Список1,_xlfn.AGGREGATE(15,6,Номер/(COUNTIF(Список2Скольз,Список1)=0),1)),\"\"))","v":""}]
["Труба",null,28,{"$f":"IF(НомерСкольз=1,INDEX(Список1,1),IFERROR(INDEX(Список1,_xlfn.AGGREGATE(15,6,Номер/(COUNTIF(Список2Скольз,Список1)=0),1)),\"\"))","v":""}]
["Пвл",null,29,{"$f":"IF(НомерСкольз=1,INDEX(Список1,1),IFERROR(INDEX(Список1,_xlfn.AGGREGATE(15,6,Номер/(COUNTIF(Список2Скольз,Список1)=0),1)),\"\"))","v":""}]
["Сетка",null,30,{"$f":"IF(НомерСкольз=1,INDEX(Список1,1),IFERROR(INDEX(Список1,_xlfn.AGGREGATE(15,6,Номер/(COUNTIF(Список2Скольз,Список1)=0),1)),\"\"))","v":""}]
["Пвл",null,31,{"$f":"IF(НомерСкольз=1,INDEX(Список1,1),IFERROR(INDEX(Список1,_xlfn.AGGREGATE(15,6,Номер/(COUNTIF(Список2Скольз,Список1)=0),1)),\"\"))","v":""}]
["Лист",null,32,{"$f":"IF(НомерСкольз=1,INDEX(Список1,1),IFERROR(INDEX(Список1,_xlfn.AGGREGATE(15,6,Номер/(COUNTIF(Список2Скольз,Список1)=0),1)),\"\"))","v":""}]
["Сетка",null,33,{"$f":"IF(НомерСкольз=1,INDEX(Список1,1),IFERROR(INDEX(Список1,_xlfn.AGGREGATE(15,6,Номер/(COUNTIF(Список2Скольз,Список1)=0),1)),\"\"))","v":""}]
["Лист",null,34,{"$f":"IF(НомерСкольз=1,INDEX(Список1,1),IFERROR(INDEX(Список1,_xlfn.AGGREGATE(15,6,Номер/(COUNTIF(Список2Скольз,Список1)=0),1)),\"\"))","v":""}]
["Труба",null,35,{"$f":"IF(НомерСкольз=1,INDEX(Список1,1),IFERROR(INDEX(Список1,_xlfn.AGGREGATE(15,6,Номер/(COUNTIF(Список2Скольз,Список1)=0),1)),\"\"))","v":""}]
["Пвл",null,36,{"$f":"IF(НомерСкольз=1,INDEX(Список1,1),IFERROR(INDEX(Список1,_xlfn.AGGREGATE(15,6,Номер/(COUNTIF(Список2Скольз,Список1)=0),1)),\"\"))","v":""}]